Workbook

Sheet UST
C1: ACHTUNG: Bearbeite die Aufgaben möglichst sorgfältig !!! | T1: Anzeigen! | Y1: 30 | CC1: ACHTUNG: Wähle die richtigen Antworten aus oder Kreuze sie an !!! | CR1: Katalognummer: | CW1: =UST!Y1 -> 30
C2: FAs & BSPs: Umsatzsteuer | CC2: FAs & BSPs: Umsatzsteuer
Y3: =G112 -> 0 | CY3: =CG112 -> Nettowert
C4: Erweiterte Kkompetenzen (EK9) | R4: ! ! ! | T4: Pkte | U4: / | V4: Ges. | Y4: =N112 -> 0 | CC4: Erweiterte Kkompetenzen (EK9) | CR4: ! ! ! | CT4: Pkte | CU4: / | CV4: Ges. | CY4: =CN112 -> Preis
Y5: =P112 -> 0 | CY5: =CP112 -> ohne
C6: 1. | D6: Berechnung der Umsatzsteuer | CC6: 4. | CD6: Berechnung der Umsatzsteuer
D7: a. | E7: Mit dem ermäßigten Ssteuersatz für z.B. Lebensmittel, Bücher, Zeitschriften, Honig, Eier, Zucker, … | CD7: e. | CE7: Mit dem ermäßigten Ssteuersatz für z.B. Lebensmittel, Bücher, Zeitschriften, Honig, Eier, Zucker, …
E8: Wie hoch ist der Normalsteuersatz? (1 Punkt) | CE8: Wie hoch ist der Normalsteuersatz? (1 Punkt)
T9: =IF(E9="","",SUM(IF(Y9=UST!CY9,1,0))) ->  | U9: / | V9: 1 | Y9: =E9 -> 0 | CE9: 0.1 | CT9: 1 | CU9: / | CV9: 1 | CY9: =CE9 -> 0.1
D11: b. | E11: Berechne die Umsatzsteuer (USt) und den Bruttopreis für folgende Lieferungen an Letztverbraucher: | CD11: f. | CE11: Berechne die Umsatzsteuer (USt) und den Bruttopreis für folgende Artikel:
E12: Achtung du musst deine Ergebnisse auf 2 Kommastellen (kaufmännisch) ruden, so wie du es in Mathematik gelernt hast! ANSONSTEN WIRDT DEIN ERGEBNIS ALS FALSCH GEWERTET!!! | CE12: Achtung du musst deine Ergebnisse auf 2 Kommastellen (kaufmännisch) ruden, so wie du es in Mathematik gelernt hast! ANSONSTEN WIRDT DEIN ERGEBNIS ALS FALSCH GEWERTET!!!
H14: Eier | J14: Schulmilch | N14: Weizenlieferung | Q14: Speiseeis | Y14: Ust | Z14: Brutto | AL14: UST_10 | AM14: 1 | AN14: 2 | AO14: 3 | AP14: 4 | AQ14: 5 | AR14: 6 | AS14: 7 | AT14: 8 | AU14: 9 | AV14: 10 | AW14: 11 | AX14: 12 | AY14: 13 | AZ14: 14 | BA14: 15 | BB14: 16 | BC14: 17 | BD14: 18 | BE14: 19 | BF14: 20 | BG14: 21 | BH14: 22 | BI14: 23 | BJ14: 24 | BK14: 25 | BL14: 26 | BM14: 27 | BN14: 28 | BO14: 29 | BP14: 30 | CH14: Eier | CJ14: Schulmilch | CN14: Weizenlieferung | CQ14: Speiseeis | CY14: Ust | CZ14: Brutto
H15: ↓ | J15: ↓ | N15: ↓ | Q15: ↓ | Y15: =H17 -> 0 | Z15: =H18 -> 0 | AM15: 1 | AN15: 0.65 | AO15: 1.5 | AP15: 1.28 | AQ15: 1.25 | AR15: 1.62 | AS15: 0.48 | AT15: 0.37 | AU15: 0.64 | AV15: 0.68 | AW15: 1.24 | AX15: 1.23 | AY15: 1.61 | AZ15: 0.57 | BA15: 1.21 | BB15: 0.66 | BC15: 0.64 | BD15: 1.41 | BE15: 0.77 | BF15: 0.49 | BG15: 1.39 | BH15: 1.29 | BI15: 0.55 | BJ15: 1.51 | BK15: 0.46 | BL15: 0.72 | BM15: 1.78 | BN15: 1.36 | BO15: 1.4 | BP15: 0.68 | CH15: ↓ | CJ15: ↓ | CN15: ↓ | CQ15: ↓ | CY15: =CH17 -> 2.5 | CZ15: =CH18 -> 27.5
E16: Preis excl. Ust | H16: =IF(OR($Y$1="",TYPE(VLOOKUP(H14,UST_10,$Y$1+1,0))=16),"",VLOOKUP(H14,UST_10,$Y$1+1,0)) -> 25 | J16: =IF(OR($Y$1="",TYPE(VLOOKUP(J14,UST_10,$Y$1+1,0))=16),"",VLOOKUP(J14,UST_10,$Y$1+1,0)) -> 5353.3 | L16: =IF(OR($Y$1="",TYPE(VLOOKUP(L14,UST_10,$Y$1+1,0))=16),"",VLOOKUP(L14,UST_10,$Y$1+1,0)) ->  | N16: =IF(OR($Y$1="",TYPE(VLOOKUP(N14,UST_10,$Y$1+1,0))=16),"",VLOOKUP(N14,UST_10,$Y$1+1,0)) -> 7110.8 | Q16: =IF(OR($Y$1="",TYPE(VLOOKUP(Q14,UST_10,$Y$1+1,0))=16),"",VLOOKUP(Q14,UST_10,$Y$1+1,0)) -> 6.5 | Y16: =J17 -> 0 | Z16: =J18 -> 0 | AL16: =H14 -> Eier | AM16: 36.7 | AN16: =ROUND($AM16*AN$41,1) -> 23.9 | AO16: 55.1 | AP16: 47 | AQ16: 45.9 | AR16: 59.5 | AS16: 17.6 | AT16: 13.6 | AU16: 23.5 | AV16: 25 | AW16: 45.5 | AX16: =ROUND($AM16*AX$41,1) -> 45.1 | AY16: 59.1 | AZ16: 20.9 | BA16: 44.4 | BB16: 24.2 | BC16: 23.5 | BD16: 51.7 | BE16: 28.3 | BF16: 18 | BG16: 51 | BH16: =ROUND($AM16*BH$41,1) -> 47.3 | BI16: 20.2 | BJ16: 55.4 | BK16: 16.9 | BL16: 26.4 | BM16: 65.3 | BN16: 49.9 | BO16: 51.4 | BP16: 25 | CE16: Preis excl. Ust | CH16: =IF(OR($CW$1="",TYPE(VLOOKUP(CH14,UST_10,$CW$1+1,0))=16),"",VLOOKUP(CH14,UST_10,$CW$1+1,0)) -> 25 | CJ16: =IF(OR($CW$1="",TYPE(VLOOKUP(CJ14,UST_10,$CW$1+1,0))=16),"",VLOOKUP(CJ14,UST_10,$CW$1+1,0)) -> 5353.3 | CL16: =IF(OR($CW$1="",TYPE(VLOOKUP(CL14,UST_10,$CW$1+1,0))=16),"",VLOOKUP(CL14,UST_10,$CW$1+1,0)) ->  | CN16: =IF(OR($CW$1="",TYPE(VLOOKUP(CN14,UST_10,$CW$1+1,0))=16),"",VLOOKUP(CN14,UST_10,$CW$1+1,0)) -> 7110.8 | CQ16: =IF(OR($CW$1="",TYPE(VLOOKUP(CQ14,UST_10,$CW$1+1,0))=16),"",VLOOKUP(CQ14,UST_10,$CW$1+1,0)) -> 6.5 | CY16: =CJ17 -> 535.33 | CZ16: =CJ18 -> 5888.63
E17: Ust | T17: =IF(AND(H17="",J17="",N17="",Q17=""),"",SUM(IF(Y15=UST!CY15,1,0),IF(Y16=UST!CY16,1,0),IF(Y17=UST!CY17,1,0),IF(Y18=UST!CY18,1,0))) ->  | U17: / | V17: 4 | Y17: =N17 -> 0 | Z17: =N18 -> 0 | AL17: =J14 -> Schulmilch | AM17: 7872.5 | AN17: 5117.1 | AO17: 11808.8 | AP17: 10076.8 | AQ17: 9840.6 | AR17: 12753.5 | AS17: 3778.8 | AT17: 2912.8 | AU17: 5038.4 | AV17: 5353.3 | AW17: 9761.9 | AX17: 9683.2 | AY17: 12674.7 | AZ17: 4487.3 | BA17: 9525.7 | BB17: 5195.9 | BC17: 5038.4 | BD17: 11100.2 | BE17: 6061.8 | BF17: 3857.5 | BG17: 10942.8 | BH17: 10155.5 | BI17: 4329.9 | BJ17: 11887.5 | BK17: 3621.4 | BL17: 5668.2 | BM17: 14013.1 | BN17: 10706.6 | BO17: 11021.5 | BP17: 5353.3 | CE17: Ust | CH17: =ROUND(CH16*$CE$9,2) -> 2.5 | CJ17: =ROUND(CJ16*$CE$9,2) -> 535.33 | CL17: =ROUND(CL16*$CE$9,2) ->  | CN17: =ROUND(CN16*$CE$9,2) -> 711.08 | CQ17: =ROUND(CQ16*$CE$9,2) -> 0.65 | CT17: 4 | CU17: / | CV17: 4 | CY17: =CN17 -> 711.08 | CZ17: =CN18 -> 7821.88
E18: Preis inkl. Ust | T18: =IF(AND(H18="",J18="",N18="",Q18=""),"",SUM(IF(Z15=UST!CZ15,1,0),IF(Z16=UST!CZ16,1,0),IF(Z17=UST!CZ17,1,0),IF(Z18=UST!CZ18,1,0))) ->  | U18: / | V18: 4 | Y18: =Q17 -> 0 | Z18: =Q18 -> 0 | AL18: =N14 -> Weizenlieferung | AM18: 10457.1 | AN18: 6797.1 | AO18: 15685.7 | AP18: 13385.1 | AQ18: 13071.4 | AR18: 16940.5 | AS18: 5019.4 | AT18: 3869.1 | AU18: 6692.5 | AV18: 7110.8 | AW18: 12966.8 | AX18: 12862.2 | AY18: 16835.9 | AZ18: 5960.5 | BA18: 12653.1 | BB18: 6901.7 | BC18: 6692.5 | BD18: 14744.5 | BE18: 8052 | BF18: 5124 | BG18: 14535.4 | BH18: 13489.7 | BI18: 5751.4 | BJ18: 15790.2 | BK18: 4810.3 | BL18: 7529.1 | BM18: 18613.6 | BN18: 14221.7 | BO18: 14639.9 | BP18: 7110.8 | CE18: Preis inkl. Ust | CH18: =ROUND(SUM(CH16:CI17),2) -> 27.5 | CJ18: =ROUND(SUM(CJ16:CK17),2) -> 5888.63 | CL18: =ROUND(SUM(CL16:CM17),2) ->  | CN18: =ROUND(SUM(CN16:CP17),2) -> 7821.88 | CQ18: =ROUND(SUM(CQ16:CR17),2) -> 7.15 | CT18: 4 | CU18: / | CV18: 4 | CY18: =CQ17 -> 0.65 | CZ18: =CQ18 -> 7.15
AL19: =Q14 -> Speiseeis | AM19: 9.6 | AN19: 6.2 | AO19: 14.4 | AP19: 12.3 | AQ19: 12 | AR19: 15.6 | AS19: 4.6 | AT19: 3.6 | AU19: 6.1 | AV19: 6.5 | AW19: 11.9 | AX19: 11.8 | AY19: 15.5 | AZ19: 5.5 | BA19: 11.6 | BB19: 6.3 | BC19: 6.1 | BD19: 13.5 | BE19: 7.4 | BF19: 4.7 | BG19: 13.3 | BH19: 12.4 | BI19: 5.3 | BJ19: 14.5 | BK19: 4.4 | BL19: 6.9 | BM19: 17.1 | BN19: 13.1 | BO19: 13.4 | BP19: 6.5
D20: c. | E20: Mit dem ermäßigten Ssteuersatz für z.B. Kino, lebende Tier, Wein , Fertigfutter, Düngemittel, … | CD20: c. | CE20: Mit dem ermäßigten Ssteuersatz für z.B. Kino, lebende Tier, Wein , Fertigfutter, Düngemittel, …
E21: Wie hoch ist der Normalsteuersatz? (1 Punkt) | CE21: Wie hoch ist der Normalsteuersatz? (1 Punkt)
T22: =IF(E22="","",SUM(IF(Y22=UST!CY22,1,0))) ->  | U22: / | V22: 1 | Y22: =E22 -> 0 | CE22: 0.13 | CT22: 1 | CU22: / | CV22: 1 | CY22: =CE22 -> 0.13
D24: d. | E24: Berechne die Umsatzsteuer (USt) und den Bruttopreis für folgende Artikel: | CD24: d. | CE24: Berechne die Umsatzsteuer (USt) und den Bruttopreis für folgende Artikel:
E25: Achtung du musst deine Ergebnisse auf 2 Kommastellen (kaufmännisch) ruden, so wie du es in Mathematik gelernt hast! ANSONSTEN WIRDT DEIN ERGEBNIS ALS FALSCH GEWERTET!!! | CE25: Achtung du musst deine Ergebnisse auf 2 Kommastellen (kaufmännisch) ruden, so wie du es in Mathematik gelernt hast! ANSONSTEN WIRDT DEIN ERGEBNIS ALS FALSCH GEWERTET!!!
H27: Theaterkarten | J27: Christbäume | N27: Rinder | Q27: Siloballen | Y27: Ust | Z27: Brutto | AL27: UST_13 | AM27: 1 | AN27: 2 | AO27: 3 | AP27: 4 | AQ27: 5 | AR27: 6 | AS27: 7 | AT27: 8 | AU27: 9 | AV27: 10 | AW27: 11 | AX27: 12 | AY27: 13 | AZ27: 14 | BA27: 15 | BB27: 16 | BC27: 17 | BD27: 18 | BE27: 19 | BF27: 20 | BG27: 21 | BH27: 22 | BI27: 23 | BJ27: 24 | BK27: 25 | BL27: 26 | BM27: 27 | BN27: 28 | BO27: 29 | BP27: 30 | CH27: Theaterkarten | CJ27: Christbäume | CN27: Rinder | CQ27: Siloballen | CY27: Ust | CZ27: Brutto
H28: ↓ | J28: ↓ | N28: ↓ | Q28: ↓ | Y28: =H30 -> 0 | Z28: =H31 -> 0 | AM28: 1 | AN28: 1.25 | AO28: 0.98 | AP28: 0.95 | AQ28: 1.1 | AR28: 1.08 | AS28: 1.05 | AT28: 1.02 | AU28: 0.88 | AV28: 0.92 | AW28: 0.94 | AX28: 0.93 | AY28: 1.04 | AZ28: 1.03 | BA28: 1.01 | BB28: 0.97 | BC28: 1.06 | BD28: 0.96 | BE28: 0.89 | BF28: 1.21 | BG28: 0.87 | BH28: 0.99 | BI28: 1.19 | BJ28: 1.14 | BK28: 0.85 | BL28: 1.11 | BM28: 0.86 | BN28: 0.82 | BO28: 1.18 | BP28: 1.16 | CH28: ↓ | CJ28: ↓ | CN28: ↓ | CQ28: ↓ | CY28: =CH30 -> 4.41 | CZ28: =CH31 -> 38.31
E29: Preis excl. Ust | H29: =IF(OR($Y$1="",TYPE(VLOOKUP(H27,UST_13,$Y$1+1,0))=16),"",VLOOKUP(H27,UST_13,$Y$1+1,0)) -> 33.9 | J29: =IF(OR($Y$1="",TYPE(VLOOKUP(J27,UST_13,$Y$1+1,0))=16),"",VLOOKUP(J27,UST_13,$Y$1+1,0)) -> 2741.1 | L29: =IF(OR($Y$1="",TYPE(VLOOKUP(L27,UST_13,$Y$1+1,0))=16),"",VLOOKUP(L27,UST_13,$Y$1+1,0)) ->  | N29: =IF(OR($Y$1="",TYPE(VLOOKUP(N27,UST_13,$Y$1+1,0))=16),"",VLOOKUP(N27,UST_13,$Y$1+1,0)) -> 1627.2 | Q29: =IF(OR($Y$1="",TYPE(VLOOKUP(Q27,UST_13,$Y$1+1,0))=16),"",VLOOKUP(Q27,UST_13,$Y$1+1,0)) -> 1020.4 | Y29: =J30 -> 0 | Z29: =J31 -> 0 | AL29: =H27 -> Theaterkarten | AM29: 49.9 | AN29: =ROUND($AM29*AN$41,1) -> 32.4 | AO29: 74.9 | AP29: 63.9 | AQ29: 62.4 | AR29: 80.8 | AS29: 24 | AT29: 18.5 | AU29: 31.9 | AV29: 33.9 | AW29: 61.9 | AX29: =ROUND($AM29*AX$41,1) -> 61.4 | AY29: 80.3 | AZ29: 28.4 | BA29: 60.4 | BB29: 32.9 | BC29: 31.9 | BD29: 70.4 | BE29: 38.4 | BF29: 24.5 | BG29: 69.4 | BH29: =ROUND($AM29*BH$41,1) -> 64.4 | BI29: 27.4 | BJ29: 75.3 | BK29: 23 | BL29: 35.9 | BM29: 88.8 | BN29: 67.9 | BO29: 69.9 | BP29: 33.9 | CE29: Preis excl. Ust | CH29: =IF(OR($CW$1="",TYPE(VLOOKUP(CH27,UST_13,$CW$1+1,0))=16),"",VLOOKUP(CH27,UST_13,$CW$1+1,0)) -> 33.9 | CJ29: =IF(OR($CW$1="",TYPE(VLOOKUP(CJ27,UST_13,$CW$1+1,0))=16),"",VLOOKUP(CJ27,UST_13,$CW$1+1,0)) -> 2741.1 | CL29: =IF(OR($CW$1="",TYPE(VLOOKUP(CL27,UST_13,$CW$1+1,0))=16),"",VLOOKUP(CL27,UST_13,$CW$1+1,0)) ->  | CN29: =IF(OR($CW$1="",TYPE(VLOOKUP(CN27,UST_13,$CW$1+1,0))=16),"",VLOOKUP(CN27,UST_13,$CW$1+1,0)) -> 1627.2 | CQ29: =IF(OR($CW$1="",TYPE(VLOOKUP(CQ27,UST_13,$CW$1+1,0))=16),"",VLOOKUP(CQ27,UST_13,$CW$1+1,0)) -> 1020.4 | CY29: =CJ30 -> 356.34 | CZ29: =CJ31 -> 3097.44
E30: Ust | T30: =IF(AND(H30="",J30="",N30="",Q30=""),"",SUM(IF(Y28=UST!CY28,1,0),IF(Y29=UST!CY29,1,0),IF(Y30=UST!CY30,1,0),IF(Y31=UST!CY31,1,0))) ->  | U30: / | V30: 4 | Y30: =N30 -> 0 | Z30: =N31 -> 0 | AL30: =J27 -> Christbäume | AM30: 4031 | AN30: 2620.2 | AO30: 6046.5 | AP30: 5159.7 | AQ30: 5038.8 | AR30: 6530.2 | AS30: 1934.9 | AT30: 1491.5 | AU30: 2579.8 | AV30: 2741.1 | AW30: 4998.4 | AX30: 4958.1 | AY30: 6489.9 | AZ30: 2297.7 | BA30: 4877.5 | BB30: 2660.5 | BC30: 2579.8 | BD30: 5683.7 | BE30: 3103.9 | BF30: 1975.2 | BG30: 5603.1 | BH30: 5200 | BI30: 2217.1 | BJ30: 6086.8 | BK30: 1854.3 | BL30: 2902.3 | BM30: 7175.2 | BN30: 5482.2 | BO30: 5643.4 | BP30: 2741.1 | CE30: Ust | CH30: =ROUND(CH29*$CE$22,2) -> 4.41 | CJ30: =ROUND(CJ29*$CE$22,2) -> 356.34 | CL30: =ROUND(CL29*$CE$22,2) ->  | CN30: =ROUND(CN29*$CE$22,2) -> 211.54 | CQ30: =ROUND(CQ29*$CE$22,2) -> 132.65 | CT30: 4 | CU30: / | CV30: 4 | CY30: =CN30 -> 211.54 | CZ30: =CN31 -> 1838.74
E31: Preis inkl. Ust | T31: =IF(AND(H31="",J31="",N31="",Q31=""),"",SUM(IF(Z28=UST!CZ28,1,0),IF(Z29=UST!CZ29,1,0),IF(Z30=UST!CZ30,1,0),IF(Z31=UST!CZ31,1,0))) ->  | U31: / | V31: 4 | Y31: =Q30 -> 0 | Z31: =Q31 -> 0 | AL31: =N27 -> Rinder | AM31: 2392.9 | AN31: 1555.4 | AO31: 3589.4 | AP31: 3062.9 | AQ31: 2991.1 | AR31: 3876.5 | AS31: 1148.6 | AT31: 885.4 | AU31: 1531.5 | AV31: 1627.2 | AW31: 2967.2 | AX31: 2943.3 | AY31: 3852.6 | AZ31: 1364 | BA31: 2895.4 | BB31: 1579.3 | BC31: 1531.5 | BD31: 3374 | BE31: 1842.5 | BF31: 1172.5 | BG31: 3326.1 | BH31: 3086.8 | BI31: 1316.1 | BJ31: 3613.3 | BK31: 1100.7 | BL31: 1722.9 | BM31: 4259.4 | BN31: 3254.3 | BO31: 3350.1 | BP31: 1627.2 | CE31: Preis inkl. Ust | CH31: =ROUND(SUM(CH29:CI30),2) -> 38.31 | CJ31: =ROUND(SUM(CJ29:CK30),2) -> 3097.44 | CL31: =ROUND(SUM(CL29:CM30),2) ->  | CN31: =ROUND(SUM(CN29:CP30),2) -> 1838.74 | CQ31: =ROUND(SUM(CQ29:CR30),2) -> 1153.05 | CT31: 4 | CU31: / | CV31: 4 | CY31: =CQ30 -> 132.65 | CZ31: =CQ31 -> 1153.05
AL32: =Q27 -> Siloballen | AM32: 1500.6 | AN32: 975.4 | AO32: 2250.9 | AP32: 1920.8 | AQ32: 1875.8 | AR32: 2431 | AS32: 720.3 | AT32: 555.2 | AU32: 960.4 | AV32: 1020.4 | AW32: 1860.7 | AX32: 1845.7 | AY32: 2416 | AZ32: 855.3 | BA32: 1815.7 | BB32: 990.4 | BC32: 960.4 | BD32: 2115.8 | BE32: 1155.5 | BF32: 735.3 | BG32: 2085.8 | BH32: 1935.8 | BI32: 825.3 | BJ32: 2265.9 | BK32: 690.3 | BL32: 1080.4 | BM32: 2671.1 | BN32: 2040.8 | BO32: 2100.8 | BP32: 1020.4
D33: d. | E33: Mit dem Normalsteuersatz | CD33: a. | CE33: Mit dem Normalsteuersatz
E34: Wie hoch ist der Normalsteuersatz? (1 Punkt) | CE34: Wie hoch ist der Normalsteuersatz? (1 Punkt)
T35: =IF(E35="","",SUM(IF(Y35=UST!CY35,1,0))) ->  | U35: / | V35: 1 | Y35: =E35 -> 0 | CE35: 0.2 | CT35: 1 | CU35: / | CV35: 1 | CY35: =CE35 -> 0.2
D37: e. | E37: Berechne die Umsatzsteuer (USt) und den Bruttopreis für folgende Artikel: | CD37: b. | CE37: Berechne die Umsatzsteuer (USt) und den Bruttopreis für folgende Artikel:
E38: Achtung du musst deine Ergebnisse auf 2 Kommastellen (kaufmännisch) ruden, so wie du es in Mathematik gelernt hast! ANSONSTEN WIRDT DEIN ERGEBNIS ALS FALSCH GEWERTET!!! | CE38: Achtung du musst deine Ergebnisse auf 2 Kommastellen (kaufmännisch) ruden, so wie du es in Mathematik gelernt hast! ANSONSTEN WIRDT DEIN ERGEBNIS ALS FALSCH GEWERTET!!!
H40: Sonnenbrille | J40: Pullover | N40: Tennisbälle | Q40: Baustoffe | Y40: Ust | Z40: Brutto | AL40: UST_20 | AM40: 1 | AN40: 2 | AO40: 3 | AP40: 4 | AQ40: 5 | AR40: 6 | AS40: 7 | AT40: 8 | AU40: 9 | AV40: 10 | AW40: 11 | AX40: 12 | AY40: 13 | AZ40: 14 | BA40: 15 | BB40: 16 | BC40: 17 | BD40: 18 | BE40: 19 | BF40: 20 | BG40: 21 | BH40: 22 | BI40: 23 | BJ40: 24 | BK40: 25 | BL40: 26 | BM40: 27 | BN40: 28 | BO40: 29 | BP40: 30 | CH40: Sonnenbrille | CJ40: Pullover | CN40: Tennisbälle | CQ40: Baustoffe | CY40: Ust | CZ40: Brutto
H41: ↓ | J41: ↓ | N41: ↓ | Q41: ↓ | Y41: =H43 -> 0 | Z41: =H44 -> 0 | AM41: 1 | AN41: 0.65 | AO41: 1.5 | AP41: 1.28 | AQ41: 1.25 | AR41: 1.62 | AS41: 0.48 | AT41: 0.37 | AU41: 0.64 | AV41: 0.68 | AW41: 1.24 | AX41: 1.23 | AY41: 1.61 | AZ41: 0.57 | BA41: 1.21 | BB41: 0.66 | BC41: 0.64 | BD41: 1.41 | BE41: 0.77 | BF41: 0.49 | BG41: 1.39 | BH41: 1.29 | BI41: 0.55 | BJ41: 1.51 | BK41: 0.46 | BL41: 0.72 | BM41: 1.78 | BN41: 1.36 | BO41: 1.4 | BP41: 0.68 | CH41: ↓ | CJ41: ↓ | CN41: ↓ | CQ41: ↓ | CY41: =CH43 -> 22.62 | CZ41: =CH44 -> 135.72
E42: Preis excl. Ust | H42: =IF(OR($Y$1="",TYPE(VLOOKUP(H40,UST_20,$Y$1+1,0))=16),"",VLOOKUP(H40,UST_20,$Y$1+1,0)) -> 113.1 | J42: =IF(OR($Y$1="",TYPE(VLOOKUP(J40,UST_20,$Y$1+1,0))=16),"",VLOOKUP(J40,UST_20,$Y$1+1,0)) -> 60 | L42: =IF(OR($Y$1="",TYPE(VLOOKUP(L40,UST_20,$Y$1+1,0))=16),"",VLOOKUP(L40,UST_20,$Y$1+1,0)) ->  | N42: =IF(OR($Y$1="",TYPE(VLOOKUP(N40,UST_20,$Y$1+1,0))=16),"",VLOOKUP(N40,UST_20,$Y$1+1,0)) -> 19 | Q42: =IF(OR($Y$1="",TYPE(VLOOKUP(Q40,UST_20,$Y$1+1,0))=16),"",VLOOKUP(Q40,UST_20,$Y$1+1,0)) -> 591.8 | Y42: =J43 -> 0 | Z42: =J44 -> 0 | AL42: =H40 -> Sonnenbrille | AM42: 166.3 | AN42: =ROUND($AM42*AN$41,1) -> 108.1 | AO42: 249.5 | AP42: 212.9 | AQ42: 207.9 | AR42: 269.4 | AS42: 79.8 | AT42: 61.5 | AU42: 106.4 | AV42: 113.1 | AW42: 206.2 | AX42: =ROUND($AM42*AX$41,1) -> 204.5 | AY42: 267.7 | AZ42: 94.8 | BA42: 201.2 | BB42: 109.8 | BC42: 106.4 | BD42: 234.5 | BE42: 128.1 | BF42: 81.5 | BG42: 231.2 | BH42: =ROUND($AM42*BH$41,1) -> 214.5 | BI42: 91.5 | BJ42: 251.1 | BK42: 76.5 | BL42: 119.7 | BM42: 296 | BN42: 226.2 | BO42: 232.8 | BP42: 113.1 | CE42: Preis excl. Ust | CH42: =IF(OR($CW$1="",TYPE(VLOOKUP(CH40,UST_20,$CW$1+1,0))=16),"",VLOOKUP(CH40,UST_20,$CW$1+1,0)) -> 113.1 | CJ42: =IF(OR($CW$1="",TYPE(VLOOKUP(CJ40,UST_20,$CW$1+1,0))=16),"",VLOOKUP(CJ40,UST_20,$CW$1+1,0)) -> 60 | CL42: =IF(OR($CW$1="",TYPE(VLOOKUP(CL40,UST_20,$CW$1+1,0))=16),"",VLOOKUP(CL40,UST_20,$CW$1+1,0)) ->  | CN42: =IF(OR($CW$1="",TYPE(VLOOKUP(CN40,UST_20,$CW$1+1,0))=16),"",VLOOKUP(CN40,UST_20,$CW$1+1,0)) -> 19 | CQ42: =IF(OR($CW$1="",TYPE(VLOOKUP(CQ40,UST_20,$CW$1+1,0))=16),"",VLOOKUP(CQ40,UST_20,$CW$1+1,0)) -> 591.8 | CY42: =CJ43 -> 12 | CZ42: =CJ44 -> 72
E43: Ust | T43: =IF(AND(H43="",J43="",N43="",Q43=""),"",SUM(IF(Y41=UST!CY41,1,0),IF(Y42=UST!CY42,1,0),IF(Y43=UST!CY43,1,0),IF(Y44=UST!CY44,1,0))) ->  | U43: / | V43: 4 | Y43: =N43 -> 0 | Z43: =N44 -> 0 | AL43: =J40 -> Pullover | AM43: 88.2 | AN43: 57.3 | AO43: 132.3 | AP43: 112.9 | AQ43: 110.3 | AR43: 142.9 | AS43: 42.3 | AT43: 32.6 | AU43: 56.4 | AV43: 60 | AW43: 109.4 | AX43: 108.5 | AY43: 142 | AZ43: 50.3 | BA43: 106.7 | BB43: 58.2 | BC43: 56.4 | BD43: 124.4 | BE43: 67.9 | BF43: 43.2 | BG43: 122.6 | BH43: 113.8 | BI43: 48.5 | BJ43: 133.2 | BK43: 40.6 | BL43: 63.5 | BM43: 157 | BN43: 120 | BO43: 123.5 | BP43: 60 | CE43: Ust | CH43: =ROUND(CH42*$CE$35,2) -> 22.62 | CJ43: =ROUND(CJ42*$CE$35,2) -> 12 | CL43: =ROUND(CL42*$CE$35,2) ->  | CN43: =ROUND(CN42*$CE$35,2) -> 3.8 | CQ43: =ROUND(CQ42*$CE$35,2) -> 118.36 | CT43: 4 | CU43: / | CV43: 4 | CY43: =CN43 -> 3.8 | CZ43: =CN44 -> 22.8
E44: Preis inkl. Ust | T44: =IF(AND(H44="",J44="",N44="",Q44=""),"",SUM(IF(Z41=UST!CZ41,1,0),IF(Z42=UST!CZ42,1,0),IF(Z43=UST!CZ43,1,0),IF(Z44=UST!CZ44,1,0))) ->  | U44: / | V44: 4 | Y44: =Q43 -> 0 | Z44: =Q44 -> 0 | AL44: =N40 -> Tennisbälle | AM44: 28 | AN44: 18.2 | AO44: 42 | AP44: 35.8 | AQ44: 35 | AR44: 45.4 | AS44: 13.4 | AT44: 10.4 | AU44: 17.9 | AV44: 19 | AW44: 34.7 | AX44: 34.4 | AY44: 45.1 | AZ44: 16 | BA44: 33.9 | BB44: 18.5 | BC44: 17.9 | BD44: 39.5 | BE44: 21.6 | BF44: 13.7 | BG44: 38.9 | BH44: 36.1 | BI44: 15.4 | BJ44: 42.3 | BK44: 12.9 | BL44: 20.2 | BM44: 49.8 | BN44: 38.1 | BO44: 39.2 | BP44: 19 | CE44: Preis inkl. Ust | CH44: =ROUND(SUM(CH42:CI43),2) -> 135.72 | CJ44: =ROUND(SUM(CJ42:CK43),2) -> 72 | CL44: =ROUND(SUM(CL42:CM43),2) ->  | CN44: =ROUND(SUM(CN42:CP43),2) -> 22.8 | CQ44: =ROUND(SUM(CQ42:CR43),2) -> 710.16 | CT44: 4 | CU44: / | CV44: 4 | CY44: =CQ43 -> 118.36 | CZ44: =CQ44 -> 710.16
AL45: =Q40 -> Baustoffe | AM45: 870.3 | AN45: 565.7 | AO45: 1305.5 | AP45: 1114 | AQ45: 1087.9 | AR45: 1409.9 | AS45: 417.7 | AT45: 322 | AU45: 557 | AV45: 591.8 | AW45: 1079.2 | AX45: 1070.5 | AY45: 1401.2 | AZ45: 496.1 | BA45: 1053.1 | BB45: 574.4 | BC45: 557 | BD45: 1227.1 | BE45: 670.1 | BF45: 426.4 | BG45: 1209.7 | BH45: 1122.7 | BI45: 478.7 | BJ45: 1314.2 | BK45: 400.3 | BL45: 626.6 | BM45: 1549.1 | BN45: 1183.6 | BO45: 1218.4 | BP45: 591.8
C46: 2. | D46: Rahme auf folgenden Belegen den Nettobetrag rot, den Umsatzsteuersatz und den Umsatzsteuerbetrag grün und den Bruttobetrag blau ein … | Y46: =Q118 -> 0 | CC46: 3. | CD46: Rahme auf folgenden Belegen den Nettobetrag rot, den Umsatzsteuersatz und den Umsatzsteuerbetrag grün und den Bruttobetrag blau ein … | CY46: =CQ118 -> Unternehmens
D47: a. | CD47: b.
AL49: Merkur_DB | AM49: 1 | AN49: 2 | AO49: 3 | AP49: 4 | AQ49: 5 | AR49: 6 | AS49: 7 | AT49: 8 | AU49: 9 | AV49: 10 | AW49: 11 | AX49: 12 | AY49: 13 | AZ49: 14 | BA49: 15 | BB49: 16 | BC49: 17 | BD49: 18 | BE49: 19 | BF49: 20 | BG49: 21 | BH49: 22 | BI49: 23 | BJ49: 24 | BK49: 25 | BL49: 26 | BM49: 27 | BN49: 28 | BO49: 29 | BP49: 30
I50: … | J50: und schreibe die jeweiligen Beträge aus dem Beleg auf: (5 Punkte) | AM50: 1 | AN50: 1.25 | AO50: 0.98 | AP50: 0.95 | AQ50: 1.1 | AR50: 1.08 | AS50: 1.05 | AT50: 1.02 | AU50: 0.88 | AV50: 0.92 | AW50: 0.94 | AX50: 0.93 | AY50: 1.04 | AZ50: 1.03 | BA50: 1.01 | BB50: 0.97 | BC50: 1.06 | BD50: 0.96 | BE50: 0.89 | BF50: 1.21 | BG50: 0.87 | BH50: 0.99 | BI50: 1.19 | BJ50: 1.14 | BK50: 0.85 | BL50: 1.11 | BM50: 0.86 | BN50: 0.82 | BO50: 1.18 | BP50: 1.16 | CI50: … | CJ50: und schreibe die jeweiligen Beträge aus dem Beleg auf: (5 Punkte)
J51: Nettobetrag | T51: =IF(N51="","",SUM(IF(Y51=UST!CY51,1,0))) ->  | U51: / | V51: 1 | Y51: =N51 -> 0 | AL51: Fanta | AM51: =SUM(AM55:AM56) -> 6.24 | AN51: =SUM(AN55:AN56) -> 7.8 | AO51: 6.12 | AP51: 5.88 | AQ51: 6.84 | AR51: 6.72 | AS51: 6.6 | AT51: 6.36 | AU51: 5.52 | AV51: 5.76 | AW51: 5.88 | AX51: 5.76 | AY51: 6.48 | AZ51: 6.48 | BA51: 6.36 | BB51: 6 | BC51: 6.6 | BD51: 6 | BE51: 5.52 | BF51: 7.56 | BG51: 5.4 | BH51: 6.12 | BI51: 7.44 | BJ51: 7.08 | BK51: 5.28 | BL51: 6.96 | BM51: 5.4 | BN51: 5.16 | BO51: 7.32 | BP51: 7.2 | CJ51: Nettobetrag | CN51: =SUM(IF(OR($Y$1="",TYPE(VLOOKUP(AL58,Merkur_DB,$Y$1+1,0))=16),22.8,VLOOKUP(AL58,Merkur_DB,$Y$1+1,0)),IF(OR($Y$1="",TYPE(VLOOKUP(AL56,Merkur_DB,$Y$1+1,0))=16),22.8,VLOOKUP(AL56,Merkur_DB,$Y$1+1,0))) -> 7 | CT51: 1 | CU51: / | CV51: 1 | CY51: =CN51 -> 7
AL52: Handsemmeln | AM52: =SUM(AM57:AM58) -> 0.99 | AN52: =SUM(AN57:AN58) -> 1.21 | AO52: 0.99 | AP52: 0.99 | AQ52: 1.1 | AR52: 1.1 | AS52: 0.99 | AT52: 0.99 | AU52: 0.88 | AV52: 0.88 | AW52: 0.88 | AX52: 0.88 | AY52: 0.99 | AZ52: 0.99 | BA52: 0.99 | BB52: 0.99 | BC52: 1.1 | BD52: 0.99 | BE52: 0.88 | BF52: 1.21 | BG52: 0.88 | BH52: 0.99 | BI52: 1.21 | BJ52: 1.1 | BK52: 0.88 | BL52: 1.1 | BM52: 0.88 | BN52: 0.77 | BO52: 1.21 | BP52: 1.1
J53: Im Beleg angewandte Umsatzsteuersätze | AL53: Summe | AM53: =SUM(AM55:AM58) -> 7.23 | AN53: =SUM(AN55:AN58) -> 9.01 | AO53: =SUM(AO55:AO58) -> 7.11 | AP53: 6.87 | AQ53: 7.94 | AR53: 7.82 | AS53: 7.59 | AT53: 7.35 | AU53: 6.4 | AV53: 6.64 | AW53: 6.76 | AX53: 6.64 | AY53: 7.47 | AZ53: 7.47 | BA53: 7.35 | BB53: 6.99 | BC53: 7.7 | BD53: 6.99 | BE53: 6.4 | BF53: 8.77 | BG53: 6.28 | BH53: 7.11 | BI53: 8.65 | BJ53: 8.18 | BK53: 6.16 | BL53: 8.06 | BM53: 6.28 | BN53: 5.93 | BO53: 8.53 | BP53: 8.3 | CJ53: Im Beleg angewandte Umsatzsteuersätze
I54: =IF(OR($Y$1="",TYPE(VLOOKUP(AL51,Merkur_DB,$Y$1+1,0))=16),22.8,VLOOKUP(AL51,Merkur_DB,$Y$1+1,0)) -> 7.2 | T54: =IF(N54="","",IF(COUNTIF($Y$54:$Y$55,N54)>0,1/COUNTIF($N$54:$P$55,N54),0)) ->  | U54: / | V54: 1 | Y54: =CY54 -> 0.1 | CN54: 0.1 | CT54: 1 | CU54: / | CV54: 1 | CY54: =CN54 -> 0.1
I55: =IF(OR($Y$1="",TYPE(VLOOKUP(AL52,Merkur_DB,$Y$1+1,0))=16),22.8,VLOOKUP(AL52,Merkur_DB,$Y$1+1,0)) -> 1.1 | T55: =IF(N55="","",IF(COUNTIF($Y$54:$Y$55,N55)>0,1/COUNTIF($N$54:$P$55,N55),0)) ->  | U55: / | V55: 1 | Y55: =CY55 -> 0.2 | AL55: Ust20 | AM55: =AM56*20% -> 1.04 | AN55: 1.3 | AO55: 1.02 | AP55: 0.98 | AQ55: 1.14 | AR55: 1.12 | AS55: 1.1 | AT55: 1.06 | AU55: 0.92 | AV55: 0.96 | AW55: 0.98 | AX55: 0.96 | AY55: 1.08 | AZ55: 1.08 | BA55: 1.06 | BB55: 1 | BC55: 1.1 | BD55: 1 | BE55: 0.92 | BF55: 1.26 | BG55: 0.9 | BH55: 1.02 | BI55: 1.24 | BJ55: 1.18 | BK55: 0.88 | BL55: 1.16 | BM55: 0.9 | BN55: 0.86 | BO55: 1.22 | BP55: 1.2 | CN55: 0.2 | CT55: 1 | CU55: / | CV55: 1 | CY55: =CN55 -> 0.2
J56: Umsatzsteuerbetrag | AL56: Netto20 | AM56: 5.2 | AN56: =ROUND($AM56*AN$50,1) -> 6.5 | AO56: 5.1 | AP56: 4.9 | AQ56: 5.7 | AR56: 5.6 | AS56: 5.5 | AT56: 5.3 | AU56: 4.6 | AV56: 4.8 | AW56: 4.9 | AX56: 4.8 | AY56: 5.4 | AZ56: 5.4 | BA56: 5.3 | BB56: 5 | BC56: 5.5 | BD56: 5 | BE56: 4.6 | BF56: 6.3 | BG56: 4.5 | BH56: 5.1 | BI56: 6.2 | BJ56: 5.9 | BK56: 4.4 | BL56: 5.8 | BM56: 4.5 | BN56: 4.3 | BO56: 6.1 | BP56: 6 | CJ56: Umsatzsteuerbetrag
T57: =IF(N57="","",SUM(IF(Y57=UST!CY57,1,0))) ->  | U57: / | V57: 1 | Y57: =N57 -> 0 | AL57: Ust10 | AM57: =AM58*10% -> 0.09 | AN57: =AN58*10% -> 0.11 | AO57: =AO58*10% -> 0.09 | AP57: 0.09 | AQ57: 0.1 | AR57: 0.1 | AS57: 0.09 | AT57: 0.09 | AU57: 0.08 | AV57: 0.08 | AW57: 0.08 | AX57: 0.08 | AY57: 0.09 | AZ57: 0.09 | BA57: 0.09 | BB57: 0.09 | BC57: 0.1 | BD57: 0.09 | BE57: 0.08 | BF57: 0.11 | BG57: 0.08 | BH57: 0.09 | BI57: 0.11 | BJ57: 0.1 | BK57: 0.08 | BL57: 0.1 | BM57: 0.08 | BN57: 0.07 | BO57: 0.11 | BP57: 0.1 | CN57: =SUM(IF(OR($Y$1="",TYPE(VLOOKUP(AL57,Merkur_DB,$Y$1+1,0))=16),22.8,VLOOKUP(AL57,Merkur_DB,$Y$1+1,0)),IF(OR($Y$1="",TYPE(VLOOKUP(AL55,Merkur_DB,$Y$1+1,0))=16),22.8,VLOOKUP(AL55,Merkur_DB,$Y$1+1,0))) -> 1.3 | CT57: 1 | CU57: / | CV57: 1 | CY57: =CN57 -> 1.3
H58: EUR | I58: =IF(OR($Y$1="",TYPE(VLOOKUP(AL53,Merkur_DB,$Y$1+1,0))=16),22.8,VLOOKUP(AL53,Merkur_DB,$Y$1+1,0)) -> 8.3 | AL58: Netto10 | AM58: 0.9 | AN58: =ROUND($AM58*AN$50,1) -> 1.1 | AO58: 0.9 | AP58: 0.9 | AQ58: 1 | AR58: 1 | AS58: 0.9 | AT58: 0.9 | AU58: 0.8 | AV58: 0.8 | AW58: 0.8 | AX58: 0.8 | AY58: 0.9 | AZ58: 0.9 | BA58: 0.9 | BB58: 0.9 | BC58: 1 | BD58: 0.9 | BE58: 0.8 | BF58: 1.1 | BG58: 0.8 | BH58: 0.9 | BI58: 1.1 | BJ58: 1 | BK58: 0.8 | BL58: 1 | BM58: 0.8 | BN58: 0.7 | BO58: 1.1 | BP58: 1
J59: Bruttobetrag | T59: =IF(N59="","",SUM(IF(Y59=UST!CY59,1,0))) ->  | U59: / | V59: 1 | Y59: =N59 -> 0 | CJ59: Bruttobetrag | CN59: =IF(OR($Y$1="",TYPE(VLOOKUP(AL53,Merkur_DB,$Y$1+1,0))=16),22.8,VLOOKUP(AL53,Merkur_DB,$Y$1+1,0)) -> 8.3 | CT59: 1 | CU59: / | CV59: 1 | CY59: =CN59 -> 8.3
H60: =IF(OR($Y$1="",TYPE(VLOOKUP(AL57,Merkur_DB,$Y$1+1,0))=16),22.8,VLOOKUP(AL57,Merkur_DB,$Y$1+1,0)) -> 0.1 | I60: =IF(OR($Y$1="",TYPE(VLOOKUP(AL58,Merkur_DB,$Y$1+1,0))=16),22.8,VLOOKUP(AL58,Merkur_DB,$Y$1+1,0)) -> 1
H61: =IF(OR($Y$1="",TYPE(VLOOKUP(AL55,Merkur_DB,$Y$1+1,0))=16),22.8,VLOOKUP(AL55,Merkur_DB,$Y$1+1,0)) -> 1.2 | I61: =IF(OR($Y$1="",TYPE(VLOOKUP(AL56,Merkur_DB,$Y$1+1,0))=16),22.8,VLOOKUP(AL56,Merkur_DB,$Y$1+1,0)) -> 6
D67: b. | CD67: c.
M70: … | N70: und schreibe die jeweiligen Beträge aus dem Beleg heraus: (4 Punkte) | AL70: Radler_DB | AM70: 1 | AN70: 2 | AO70: 3 | AP70: 4 | AQ70: 5 | AR70: 6 | AS70: 7 | AT70: 8 | AU70: 9 | AV70: 10 | AW70: 11 | AX70: 12 | AY70: 13 | AZ70: 14 | BA70: 15 | BB70: 16 | BC70: 17 | BD70: 18 | BE70: 19 | BF70: 20 | BG70: 21 | BH70: 22 | BI70: 23 | BJ70: 24 | BK70: 25 | BL70: 26 | BM70: 27 | BN70: 28 | BO70: 29 | BP70: 30 | CM70: … | CN70: und schreibe die jeweiligen Beträge aus dem Beleg heraus: (4 Punkte)
AM71: 1 | AN71: 1.25 | AO71: 0.98 | AP71: 0.95 | AQ71: 1.1 | AR71: 1.08 | AS71: 1.05 | AT71: 1.02 | AU71: 0.88 | AV71: 0.92 | AW71: 0.94 | AX71: 0.93 | AY71: 1.04 | AZ71: 1.03 | BA71: 1.01 | BB71: 0.97 | BC71: 1.06 | BD71: 0.96 | BE71: 0.89 | BF71: 1.21 | BG71: 0.87 | BH71: 0.99 | BI71: 1.19 | BJ71: 1.14 | BK71: 0.85 | BL71: 1.11 | BM71: 0.86 | BN71: 0.82 | BO71: 1.18 | BP71: 1.16
N72: Nettobetrag | T72: =IF(Q72="","",SUM(IF(Y72=UST!CY72,1,0))) ->  | U72: / | V72: 1 | Y72: =Q72 -> 0 | AL72: Fleecepullover "Trend" | AM72: 80 | AN72: =ROUND($AM72*AN$71,0) -> 100 | AO72: 78 | AP72: 76 | AQ72: 88 | AR72: 86 | AS72: 84 | AT72: 82 | AU72: 70 | AV72: 74 | AW72: 75 | AX72: =ROUND($AM72*AX$71,0) -> 74 | AY72: 83 | AZ72: 82 | BA72: 81 | BB72: 78 | BC72: 85 | BD72: 77 | BE72: 71 | BF72: 97 | BG72: 70 | BH72: =ROUND($AM72*BH$71,0) -> 79 | BI72: 95 | BJ72: 91 | BK72: 68 | BL72: 89 | BM72: 69 | BN72: 66 | BO72: 94 | BP72: 93 | CN72: Nettobetrag | CQ72: =IF(OR($Y$1="",TYPE(VLOOKUP(AL75,Radler_DB,$Y$1+1,0))=16),22.8,VLOOKUP(AL75,Radler_DB,$Y$1+1,0)) -> 281.7 | CT72: 1 | CU72: / | CV72: 1 | CY72: =CQ72 -> 281.7
AL73: Doppeljacke "Etremfrost" | AM73: 190 | AN73: 238 | AO73: 186 | AP73: 181 | AQ73: 209 | AR73: 205 | AS73: 200 | AT73: 194 | AU73: 167 | AV73: 175 | AW73: 179 | AX73: 177 | AY73: 198 | AZ73: 196 | BA73: 192 | BB73: 184 | BC73: 201 | BD73: 182 | BE73: 169 | BF73: 230 | BG73: 165 | BH73: 188 | BI73: 226 | BJ73: 217 | BK73: 162 | BL73: 211 | BM73: 163 | BN73: 156 | BO73: 224 | BP73: 220
N74: Im Beleg angewandter Umsatzsteuersatz | AL74: Rabatt | AM74: =-SUM(AM72,AM73)*10% -> -27 | AN74: =-SUM(AN72,AN73)*10% -> -33.8 | AO74: -26.4 | AP74: -25.7 | AQ74: -29.7 | AR74: -29.1 | AS74: -28.4 | AT74: -27.6 | AU74: -23.7 | AV74: -24.9 | AW74: -25.4 | AX74: -25.1 | AY74: -28.1 | AZ74: -27.8 | BA74: -27.3 | BB74: -26.2 | BC74: -28.6 | BD74: -25.9 | BE74: -24 | BF74: -32.7 | BG74: -23.5 | BH74: -26.7 | BI74: -32.1 | BJ74: -30.8 | BK74: -23 | BL74: -30 | BM74: -23.2 | BN74: -22.2 | BO74: -31.8 | BP74: -31.3 | CN74: Im Beleg angewandter Umsatzsteuersatz
I75: =IF(OR($Y$1="",TYPE(VLOOKUP(AL72,Radler_DB,$Y$1+1,0))=16),22.8,VLOOKUP(AL72,Radler_DB,$Y$1+1,0)) -> 93 | J75: =I75 -> 93 | T75: =IF(Q75="","",SUM(IF(Y75=UST!CY75,1,0))) ->  | U75: / | V75: 1 | Y75: =Q75 -> 0 | AL75: Summe | AM75: =SUM(AM72:AM74) -> 243 | AN75: =SUM(AN72:AN74) -> 304.2 | AO75: 237.6 | AP75: 231.3 | AQ75: 267.3 | AR75: 261.9 | AS75: 255.6 | AT75: 248.4 | AU75: 213.3 | AV75: 224.1 | AW75: 228.6 | AX75: 225.9 | AY75: 252.9 | AZ75: 250.2 | BA75: 245.7 | BB75: 235.8 | BC75: 257.4 | BD75: 233.1 | BE75: 216 | BF75: 294.3 | BG75: 211.5 | BH75: 240.3 | BI75: 288.9 | BJ75: 277.2 | BK75: 207 | BL75: 270 | BM75: 208.8 | BN75: 199.8 | BO75: 286.2 | BP75: 281.7 | CQ75: 0.2 | CT75: 1 | CU75: / | CV75: 1 | CY75: =CQ75 -> 0.2
I76: =IF(OR($Y$1="",TYPE(VLOOKUP(AL73,Radler_DB,$Y$1+1,0))=16),22.8,VLOOKUP(AL73,Radler_DB,$Y$1+1,0)) -> 220 | J76: =I76 -> 220
J77: =IF(OR($Y$1="",TYPE(VLOOKUP(AL74,Radler_DB,$Y$1+1,0))=16),22.8,VLOOKUP(AL74,Radler_DB,$Y$1+1,0)) -> -31.3 | N77: Umsatzsteuerbetrag | T77: =IF(Q77="","",SUM(IF(Y77=UST!CY77,1,0))) ->  | U77: / | V77: 1 | Y77: =Q77 -> 0 | AL77: Ust | AM77: =AM75*20% -> 48.6 | AN77: =AN75*20% -> 60.84 | AO77: 47.52 | AP77: 46.26 | AQ77: 53.46 | AR77: 52.38 | AS77: 51.12 | AT77: 49.68 | AU77: 42.66 | AV77: 44.82 | AW77: 45.72 | AX77: 45.18 | AY77: 50.58 | AZ77: 50.04 | BA77: 49.14 | BB77: 47.16 | BC77: 51.48 | BD77: 46.62 | BE77: 43.2 | BF77: 58.86 | BG77: 42.3 | BH77: 48.06 | BI77: 57.78 | BJ77: 55.44 | BK77: 41.4 | BL77: 54 | BM77: 41.76 | BN77: 39.96 | BO77: 57.24 | BP77: 56.34 | CN77: Umsatzsteuerbetrag | CQ77: =IF(OR($Y$1="",TYPE(VLOOKUP(AL77,Radler_DB,$Y$1+1,0))=16),22.8,VLOOKUP(AL77,Radler_DB,$Y$1+1,0)) -> 56.34 | CT77: 1 | CU77: / | CV77: 1 | CY77: =CQ77 -> 56.34
J78: =IF(OR($Y$1="",TYPE(VLOOKUP(AL75,Radler_DB,$Y$1+1,0))=16),22.8,VLOOKUP(AL75,Radler_DB,$Y$1+1,0)) -> 281.7 | AL78: Bruttobetrag | AM78: =SUM(AM75:AM77) -> 291.6 | AN78: =SUM(AN75:AN77) -> 365.04 | AO78: 285.12 | AP78: 277.56 | AQ78: 320.76 | AR78: 314.28 | AS78: 306.72 | AT78: 298.08 | AU78: 255.96 | AV78: 268.92 | AW78: 274.32 | AX78: 271.08 | AY78: 303.48 | AZ78: 300.24 | BA78: 294.84 | BB78: 282.96 | BC78: 308.88 | BD78: 279.72 | BE78: 259.2 | BF78: 353.16 | BG78: 253.8 | BH78: 288.36 | BI78: 346.68 | BJ78: 332.64 | BK78: 248.4 | BL78: 324 | BM78: 250.56 | BN78: 239.76 | BO78: 343.44 | BP78: 338.04
N79: Bruttobetrag | T79: =IF(Q79="","",SUM(IF(Y79=UST!CY79,1,0))) ->  | U79: / | V79: 1 | Y79: =Q79 -> 0 | CN79: Bruttobetrag | CQ79: =IF(OR($Y$1="",TYPE(VLOOKUP(AL78,Radler_DB,$Y$1+1,0))=16),22.8,VLOOKUP(AL78,Radler_DB,$Y$1+1,0)) -> 338.04 | CT79: 1 | CU79: / | CV79: 1 | CY79: =CQ79 -> 338.04
H80: =J78 -> 281.7 | I80: =IF(OR($Y$1="",TYPE(VLOOKUP(AL77,Radler_DB,$Y$1+1,0))=16),22.8,VLOOKUP(AL77,Radler_DB,$Y$1+1,0)) -> 56.34 | J80: =IF(OR($Y$1="",TYPE(VLOOKUP(AL78,Radler_DB,$Y$1+1,0))=16),22.8,VLOOKUP(AL78,Radler_DB,$Y$1+1,0)) -> 338.04
J81: =J80 -> 338.04
D90: c. | CD90: a.
I93: … | J93: und schreibe die jeweiligen Beträge aus dem Beleg auf: (4 Punkte) | CI93: … | CJ93: und schreibe die jeweiligen Beträge aus dem Beleg auf: (4 Punkte)
J94: Nettobetrag | T94: =IF(N94="","",SUM(IF(Y94=UST!CY94,1,0))) ->  | U94: / | V94: 1 | Y94: =N94 -> 0 | CJ94: Nettobetrag | CN94: =IF(OR($Y$1="",TYPE(VLOOKUP(AL104,Libro_DB,$Y$1+1,0))=16),111.6,VLOOKUP(AL104,Libro_DB,$Y$1+1,0)) -> 156.1 | CT94: 1 | CU94: / | CV94: 1 | CY94: =CN94 -> 156.1
J96: Im Beleg angewandter Umsatzsteuersatz | CJ96: Im Beleg angewandter Umsatzsteuersatz
T97: =IF(N97="","",SUM(IF(Y97=UST!CY97,1,0))) ->  | U97: / | V97: 1 | Y97: =N97 -> 0 | AL97: Libro_DB | AM97: 1 | AN97: 2 | AO97: 3 | AP97: 4 | AQ97: 5 | AR97: 6 | AS97: 7 | AT97: 8 | AU97: 9 | AV97: 10 | AW97: 11 | AX97: 12 | AY97: 13 | AZ97: 14 | BA97: 15 | BB97: 16 | BC97: 17 | BD97: 18 | BE97: 19 | BF97: 20 | BG97: 21 | BH97: 22 | BI97: 23 | BJ97: 24 | BK97: 25 | BL97: 26 | BM97: 27 | BN97: 28 | BO97: 29 | BP97: 30 | CN97: 0.2 | CT97: 1 | CU97: / | CV97: 1 | CY97: =CN97 -> 0.2
AM98: 1 | AN98: 1.25 | AO98: 0.98 | AP98: 0.95 | AQ98: 1.1 | AR98: 1.08 | AS98: 1.05 | AT98: 1.02 | AU98: 0.88 | AV98: 0.92 | AW98: 0.94 | AX98: 0.93 | AY98: 1.04 | AZ98: 1.03 | BA98: 1.01 | BB98: 0.97 | BC98: 1.06 | BD98: 0.96 | BE98: 0.89 | BF98: 1.21 | BG98: 0.87 | BH98: 0.99 | BI98: 1.19 | BJ98: 1.14 | BK98: 0.85 | BL98: 1.11 | BM98: 0.86 | BN98: 0.82 | BO98: 1.18 | BP98: 1.16
I99: =IF(OR($Y$1="",TYPE(VLOOKUP(AL99,Libro_DB,$Y$1+1,0))=16),22.8,VLOOKUP(AL99,Libro_DB,$Y$1+1,0)) -> 47.42 | J99: Umsatzsteuerbetrag | AL99: Druckepatrone schwarz | AM99: =AM101-AM100 -> 40.92 | AN99: 51.16 | AO99: 40.08 | AP99: 38.88 | AQ99: 45.02 | AR99: 44.28 | AS99: 42.96 | AT99: 41.76 | AU99: 35.98 | AV99: 37.56 | AW99: 38.4 | AX99: 38.04 | AY99: 42.6 | AZ99: 42.12 | BA99: 41.28 | BB99: 39.72 | BC99: 43.44 | BD99: 39.24 | BE99: 36.46 | BF99: 49.58 | BG99: 35.62 | BH99: 40.56 | BI99: 48.74 | BJ99: 46.58 | BK99: 34.78 | BL99: 45.38 | BM99: 35.26 | BN99: 33.58 | BO99: 48.26 | BP99: 47.42 | CJ99: Umsatzsteuerbetrag
I100: =IF(OR($Y$1="",TYPE(VLOOKUP(AL100,Libro_DB,$Y$1+1,0))=16),111.6,VLOOKUP(AL100,Libro_DB,$Y$1+1,0)) -> 139.9 | T100: =IF(N100="","",SUM(IF(Y100=UST!CY100,1,0))) ->  | U100: / | V100: 1 | Y100: =N100 -> 0 | AL100: Digicam Everest | AM100: 120.6 | AN100: =ROUND($AM100*AN$98,1) -> 150.8 | AO100: 118.2 | AP100: 114.6 | AQ100: 132.7 | AR100: 130.2 | AS100: 126.6 | AT100: 123 | AU100: 106.1 | AV100: 111 | AW100: 113.4 | AX100: 112.2 | AY100: 125.4 | AZ100: 124.2 | BA100: 121.8 | BB100: 117 | BC100: 127.8 | BD100: 115.8 | BE100: 107.3 | BF100: 145.9 | BG100: 104.9 | BH100: 119.4 | BI100: 143.5 | BJ100: 137.5 | BK100: 102.5 | BL100: 133.9 | BM100: 103.7 | BN100: 98.9 | BO100: 142.3 | BP100: 139.9 | CN100: =IF(OR($Y$1="",TYPE(VLOOKUP(AL103,Libro_DB,$Y$1+1,0))=16),111.6,VLOOKUP(AL103,Libro_DB,$Y$1+1,0)) -> 31.22 | CT100: 1 | CU100: / | CV100: 1 | CY100: =CN100 -> 31.22
I101: =IF(OR($Y$1="",TYPE(VLOOKUP(AL101,Libro_DB,$Y$1+1,0))=16),111.6,VLOOKUP(AL101,Libro_DB,$Y$1+1,0)) -> 187.32 | AL101: Summe | AM101: =AM103+AM104 -> 161.52 | AN101: 201.96 | AO101: 158.28 | AP101: 153.48 | AQ101: 177.72 | AR101: 174.48 | AS101: 169.56 | AT101: 164.76 | AU101: 142.08 | AV101: 148.56 | AW101: 151.8 | AX101: 150.24 | AY101: 168 | AZ101: 166.32 | BA101: 163.08 | BB101: 156.72 | BC101: 171.24 | BD101: 155.04 | BE101: 143.76 | BF101: 195.48 | BG101: 140.52 | BH101: 159.96 | BI101: 192.24 | BJ101: 184.08 | BK101: 137.28 | BL101: 179.28 | BM101: 138.96 | BN101: 132.48 | BO101: 190.56 | BP101: 187.32
I102: =IF(OR($Y$1="",TYPE(VLOOKUP(AL102,Libro_DB,$Y$1+1,0))=16),111.6,TEXT(VLOOKUP(AL102,Libro_DB,$Y$1+1,0),"# ##0,00")) -> 111.6 | J102: Bruttobetrag | T102: =IF(N102="","",SUM(IF(Y102=UST!CY102,1,0))) ->  | U102: / | V102: 1 | Y102: =N102 -> 0 | CJ102: Bruttobetrag | CN102: =IF(OR($Y$1="",TYPE(VLOOKUP(AL101,Libro_DB,$Y$1+1,0))=16),111.6,VLOOKUP(AL101,Libro_DB,$Y$1+1,0)) -> 187.32 | CT102: 1 | CU102: / | CV102: 1 | CY102: =CN102 -> 187.32
AL103: Ust | AM103: =AM104*20% -> 26.92 | AN103: 33.66 | AO103: 26.38 | AP103: 25.58 | AQ103: 29.62 | AR103: 29.08 | AS103: 28.26 | AT103: 27.46 | AU103: 23.68 | AV103: 24.76 | AW103: 25.3 | AX103: 25.04 | AY103: 28 | AZ103: 27.72 | BA103: 27.18 | BB103: 26.12 | BC103: 28.54 | BD103: 25.84 | BE103: 23.96 | BF103: 32.58 | BG103: 23.42 | BH103: 26.66 | BI103: 32.04 | BJ103: 30.68 | BK103: 22.88 | BL103: 29.88 | BM103: 23.16 | BN103: 22.08 | BO103: 31.76 | BP103: 31.22
H104: =IF(OR($Y$1="",TYPE(VLOOKUP(AL104,Libro_DB,$Y$1+1,0))=16),111.6,VLOOKUP(AL104,Libro_DB,$Y$1+1,0)) -> 156.1 | I104: =IF(OR($Y$1="",TYPE(VLOOKUP(AL103,Libro_DB,$Y$1+1,0))=16),111.6,VLOOKUP(AL103,Libro_DB,$Y$1+1,0)) -> 31.22 | AL104: Netto | AM104: 134.6 | AN104: =ROUND($AM104*AN$98,1) -> 168.3 | AO104: 131.9 | AP104: 127.9 | AQ104: 148.1 | AR104: 145.4 | AS104: 141.3 | AT104: 137.3 | AU104: 118.4 | AV104: 123.8 | AW104: 126.5 | AX104: 125.2 | AY104: 140 | AZ104: 138.6 | BA104: 135.9 | BB104: 130.6 | BC104: 142.7 | BD104: 129.2 | BE104: 119.8 | BF104: 162.9 | BG104: 117.1 | BH104: 133.3 | BI104: 160.2 | BJ104: 153.4 | BK104: 114.4 | BL104: 149.4 | BM104: 115.8 | BN104: 110.4 | BO104: 158.8 | BP104: 156.1
C111: 3. | D111: Umsatzsteuer: Erkläre die (fehlenden) Begriffe "Netto" bzw. "Brutto" in der folgenden Aussage zum Thema Umsatzsteuer! (7 Punkte) | Y111: =G113 -> 0 | CC111: 1. | CD111: Umsatzsteuer: Ergänze die fehlenden Begriffe in der folgenden Aussage zum Thema Umsatzsteuer! (7 Punkte) | CY111: =CG113 -> Bruttowert
D112: Unter dem | J112: versteht man den | Q112: Umsatzsteuer. | T112: =IF(AND(G112="",N112="",P112=""),"",SUM(IF(Y3=UST!CY3,1,0),IF(Y4=UST!CY4,1,0),IF(Y5=UST!CY5,1,0))) ->  | U112: / | V112: 3 | Y112: =N113 -> 0 | CD112: Unter dem | CG112: Nettowert | CJ112: versteht man den | CN112: Preis | CP112: ohne | CQ112: Umsatzsteuer. | CT112: 3 | CU112: / | CV112: 3 | CY112: =CN113 -> Preis
D113: Unter dem | J113: versteht man den | Q113: Umsatzsteuer (10%, | T113: =IF(AND(G113="",N113="",P113=""),"",SUM(IF(Y111=UST!CY111,1,0),IF(Y112=UST!CY112,1,0),IF(Y113=UST!CY113,1,0))) ->  | U113: / | V113: 3 | Y113: =P113 -> 0 | CD113: Unter dem | CG113: Bruttowert | CJ113: versteht man den | CN113: Preis | CP113: mit | CQ113: Umsatzsteuer (10%, | CT113: 3 | CU113: / | CV113: 3 | CY113: =CP113 -> mit
D114: 13% oder 20% des | J114: ). | T114: =IF(H114="","",SUM(IF(Y114=UST!CY114,1,0))) ->  | U114: / | V114: 1 | Y114: =H114 -> 0 | CD114: 13% oder 20% des | CH114: Nettowertes | CJ114: ). | CT114: 1 | CU114: / | CV114: 1 | CY114: =CH114 -> Nettowertes
C116: 4. | D116: Umsatzsteuer: Ergänze die fehlenden Begriffe in der folgenden Aussage zum Thema Umsatzsteuer! (5 Punkte) | CC116: 2. | CD116: Umsatzsteuer: Ergänze die fehlenden Begriffe in der folgenden Aussage zum Thema Umsatzsteuer! (5 Punkte)
D117: Grundsätzlich werden alle | L117: und sonstigen | R117: , die ein | T117: =IF(AND(I117="",P117=""),"",SUM(IF(Y117=UST!CY117,1,0),IF(Y118=UST!CY118,1,0))) ->  | U117: / | V117: 2 | Y117: =I117 -> 0 | CD117: Grundsätzlich werden alle | CI117: Lieferungen | CL117: und sonstigen | CP117: Leistungen | CR117: , die ein | CT117: 2 | CU117: / | CV117: 2 | CY117: =CI117 -> Lieferungen
H118: in Österreich gegen | N118: im Rahmen seines | T118: =IF(AND(D118="",J118="",Q118=""),"",SUM(IF(Y119=UST!CY119,1,0),IF(Y120=UST!CY120,1,0),IF(Y46=UST!CY46,1,0))) ->  | U118: / | V118: 3 | Y118: =P117 -> 0 | CD118: Unternehmer | CH118: in Österreich gegen | CJ118: Bezahlung | CN118: im Rahmen seines | CQ118: Unternehmens | CT118: 3 | CU118: / | CV118: 3 | CY118: =CP117 -> Leistungen
D119: erbringt, besteuert. | Y119: =D118 -> 0 | CD119: erbringt, besteuert. | CY119: =CD118 -> Unternehmer
Y120: =J118 -> 0 | CY120: =CJ118 -> Bezahlung
C121: 5. | D121: Berechne für die folgenden Preise den Umsatzsteuerbetrag mit dem Normalsteuersatz von 20%. (4 Punkte) | CC121: 6. | CD121: Berechne für die folgenden Preise den Umsatzsteuerbetrag mit dem Normalsteuersatz von 20%. (4 Punkte)
D122: Achtung du musst deine Ergebnisse auf 2 Kommastellen (kaufmännisch) ruden, so wie du es in Mathematik gelernt hast! ANSONSTEN WIRDT DEIN ERGEBNIS ALS FALSCH GEWERTET!!! | CD122: Achtung du musst deine Ergebnisse auf 2 Kommastellen (kaufmännisch) ruden, so wie du es in Mathematik gelernt hast! ANSONSTEN WIRDT DEIN ERGEBNIS ALS FALSCH GEWERTET!!!
D124: a. | CD124: d.
I128: USst = | T128: =IF(J128="","",SUM(IF(Y128=UST!CY128,1,0))) ->  | U128: / | V128: 1 | X128: =UST!CX128 -> 46.56 | Y128: =J128 -> 0 | CI128: USst = | CJ128: =ROUND($CX128*CN$153/(100%+CN$153),2) -> 7.76 | CT128: 1 | CU128: / | CV128: 1 | CX128: =A177 -> 46.56 | CY128: =CJ128 -> 7.76
D130: b. | CD130: a.
I134: USst = | T134: =IF(J134="","",SUM(IF(Y134=UST!CY134,1,0))) ->  | U134: / | V134: 1 | X134: =UST!CX134 -> 24.36 | Y134: =J134 -> 0 | CI134: USst = | CJ134: =ROUND($CX134*CN$153/(100%+CN$153),2) -> 4.06 | CT134: 1 | CU134: / | CV134: 1 | CX134: =A168 -> 24.36 | CY134: =CJ134 -> 4.06
D136: c. | CD136: b.
I140: USst = | T140: =IF(J140="","",SUM(IF(Y140=UST!CY140,1,0))) ->  | U140: / | V140: 1 | X140: =UST!CX140 -> 330 | Y140: =J140 -> 0 | CI140: USst = | CJ140: =ROUND($CX140*CN$153/(100%+CN$153),2) -> 55 | CT140: 1 | CU140: / | CV140: 1 | CX140: =A171 -> 330 | CY140: =CJ140 -> 55
D142: d. | CD142: c.
I146: USst = | T146: =IF(J146="","",SUM(IF(Y146=UST!CY146,1,0))) ->  | U146: / | V146: 1 | X146: =UST!CX146 -> 69.6 | Y146: =J146 -> 0 | CI146: USst = | CJ146: =ROUND($CX146*CN$153/(100%+CN$153),2) -> 11.6 | CT146: 1 | CU146: / | CV146: 1 | CX146: =A174 -> 69.6 | CY146: =CJ146 -> 11.6
C150: 6. | D150: Berechne für die folgenden Nettobeträge die Umsatzstuerbeträge bei einem Steuersatz von 20%, von 13% und von 10%. (9 Punkte) | CC150: 5. | CD150: Berechne für die folgenden Nettobeträge die Umsatzstuerbeträge bei einem Steuersatz von 20%, von 13% und von 10%. (9 Punkte)
D151: Achtung du musst deine Ergebnisse auf 2 Kommastellen (kaufmännisch) ruden, so wie du es in Mathematik gelernt hast! ANSONSTEN WIRDT DEIN ERGEBNIS ALS FALSCH GEWERTET!!! | CD151: Achtung du musst deine Ergebnisse auf 2 Kommastellen (kaufmännisch) ruden, so wie du es in Mathematik gelernt hast! ANSONSTEN WIRDT DEIN ERGEBNIS ALS FALSCH GEWERTET!!!
H153: 0.1 | J153: 0.13 | N153: 0.2 | AL153: UST_BETR | AM153: 1 | AN153: 2 | AO153: 3 | AP153: 4 | AQ153: 5 | AR153: 6 | AS153: 7 | AT153: 8 | AU153: 9 | AV153: 10 | AW153: 11 | AX153: 12 | AY153: 13 | AZ153: 14 | BA153: 15 | BB153: 16 | BC153: 17 | BD153: 18 | BE153: 19 | BF153: 20 | BG153: 21 | BH153: 22 | BI153: 23 | BJ153: 24 | BK153: 25 | BL153: 26 | BM153: 27 | BN153: 28 | BO153: 29 | BP153: 30 | CH153: 0.1 | CJ153: 0.13 | CN153: 0.2
H154: ↓ | J154: ↓ | N154: ↓ | X154: 0.2 | Y154: 0.13 | Z154: 0.1 | AM154: 1 | AN154: 1.25 | AO154: 0.98 | AP154: 0.95 | AQ154: 1.1 | AR154: 1.08 | AS154: 1.05 | AT154: 1.02 | AU154: 0.88 | AV154: 0.92 | AW154: 0.94 | AX154: 0.93 | AY154: 1.04 | AZ154: 1.03 | BA154: 1.01 | BB154: 0.97 | BC154: 1.06 | BD154: 0.96 | BE154: 0.89 | BF154: 1.21 | BG154: 0.87 | BH154: 0.99 | BI154: 1.19 | BJ154: 1.14 | BK154: 0.85 | BL154: 1.11 | BM154: 0.86 | BN154: 0.82 | BO154: 1.18 | BP154: 1.16 | CH154: ↓ | CJ154: ↓ | CN154: ↓ | CX154: 0.2 | CY154: 0.13 | CZ154: 0.1
D155: =IF(OR($Y$1="",TYPE(VLOOKUP(AL155,UST_BETR,$Y$1+1,0))=16),"",VLOOKUP(AL155,UST_BETR,$Y$1+1,0)) -> 280.7 | T155: =IF(AND(H155="",H156="",H157=""),"",SUM(IF(X155=UST!CX155,1,0),IF(X156=UST!CX156,1,0),IF(X157=UST!CX157,1,0))) ->  | U155: / | V155: 3 | X155: =H155 -> 0 | Y155: =J155 -> 0 | Z155: =N155 -> 0 | AL155: 1 | AM155: 412.8 | AN155: =ROUND($AM155*AN$41,1) -> 268.3 | AO155: 619.2 | AP155: 528.4 | AQ155: 516 | AR155: 668.7 | AS155: 198.1 | AT155: 152.7 | AU155: 264.2 | AV155: 280.7 | AW155: 511.9 | AX155: =ROUND($AM155*AX$41,1) -> 507.7 | AY155: 664.6 | AZ155: 235.3 | BA155: 499.5 | BB155: 272.4 | BC155: 264.2 | BD155: 582 | BE155: 317.9 | BF155: 202.3 | BG155: 573.8 | BH155: =ROUND($AM155*BH$41,1) -> 532.5 | BI155: 227 | BJ155: 623.3 | BK155: 189.9 | BL155: 297.2 | BM155: 734.8 | BN155: 561.4 | BO155: 577.9 | BP155: 280.7 | CD155: =IF(OR($Y$1="",TYPE(VLOOKUP(AL155,UST_BETR,$Y$1+1,0))=16),"",VLOOKUP(AL155,UST_BETR,$Y$1+1,0)) -> 280.7 | CH155: =ROUND($CD155*CH$153,2) -> 28.07 | CJ155: =ROUND($CD155*CJ$153,2) -> 36.49 | CL155: =ROUND($CD155*CL$153,2) -> 0 | CN155: =ROUND($CD155*CN$153,2) -> 56.14 | CT155: 3 | CU155: / | CV155: 3 | CX155: =CH155 -> 28.07 | CY155: =CJ155 -> 36.49 | CZ155: =CN155 -> 56.14
D156: =IF(OR($Y$1="",TYPE(VLOOKUP(AL156,UST_BETR,$Y$1+1,0))=16),"",VLOOKUP(AL156,UST_BETR,$Y$1+1,0)) -> 1209.9 | T156: =IF(AND(J155="",J156="",J157=""),"",SUM(IF(Y155=UST!CY155,1,0),IF(Y156=UST!CY156,1,0),IF(Y157=UST!CY157,1,0))) ->  | U156: / | V156: 3 | X156: =H156 -> 0 | Y156: =J156 -> 0 | Z156: =N156 -> 0 | AL156: 2 | AM156: 1779.2 | AN156: 1156.5 | AO156: 2668.8 | AP156: 2277.4 | AQ156: 2224 | AR156: 2882.3 | AS156: 854 | AT156: 658.3 | AU156: 1138.7 | AV156: 1209.9 | AW156: 2206.2 | AX156: 2188.4 | AY156: 2864.5 | AZ156: 1014.1 | BA156: 2152.8 | BB156: 1174.3 | BC156: 1138.7 | BD156: 2508.7 | BE156: 1370 | BF156: 871.8 | BG156: 2473.1 | BH156: 2295.2 | BI156: 978.6 | BJ156: 2686.6 | BK156: 818.4 | BL156: 1281 | BM156: 3167 | BN156: 2419.7 | BO156: 2490.9 | BP156: 1209.9 | CD156: =IF(OR($Y$1="",TYPE(VLOOKUP(AL156,UST_BETR,$Y$1+1,0))=16),"",VLOOKUP(AL156,UST_BETR,$Y$1+1,0)) -> 1209.9 | CH156: =ROUND($CD156*CH$153,2) -> 120.99 | CJ156: =ROUND($CD156*CJ$153,2) -> 157.29 | CL156: =ROUND($CD156*CL$153,2) -> 0 | CN156: =ROUND($CD156*CN$153,2) -> 241.98 | CT156: 3 | CU156: / | CV156: 3 | CX156: =CH156 -> 120.99 | CY156: =CJ156 -> 157.29 | CZ156: =CN156 -> 241.98
D157: =IF(OR($Y$1="",TYPE(VLOOKUP(AL157,UST_BETR,$Y$1+1,0))=16),"",VLOOKUP(AL157,UST_BETR,$Y$1+1,0)) -> 185 | T157: =IF(AND(N155="",N156="",N157=""),"",SUM(IF(Z155=UST!CZ155,1,0),IF(Z156=UST!CZ156,1,0),IF(Z157=UST!CZ157,1,0))) ->  | U157: / | V157: 3 | X157: =H157 -> 0 | Y157: =J157 -> 0 | Z157: =N157 -> 0 | AL157: 3 | AM157: 272 | AN157: 176.8 | AO157: 408 | AP157: 348.2 | AQ157: 340 | AR157: 440.6 | AS157: 130.6 | AT157: 100.6 | AU157: 174.1 | AV157: 185 | AW157: 337.3 | AX157: 334.6 | AY157: 437.9 | AZ157: 155 | BA157: 329.1 | BB157: 179.5 | BC157: 174.1 | BD157: 383.5 | BE157: 209.4 | BF157: 133.3 | BG157: 378.1 | BH157: 350.9 | BI157: 149.6 | BJ157: 410.7 | BK157: 125.1 | BL157: 195.8 | BM157: 484.2 | BN157: 369.9 | BO157: 380.8 | BP157: 185 | CD157: =IF(OR($Y$1="",TYPE(VLOOKUP(AL157,UST_BETR,$Y$1+1,0))=16),"",VLOOKUP(AL157,UST_BETR,$Y$1+1,0)) -> 185 | CH157: =ROUND($CD157*CH$153,2) -> 18.5 | CJ157: =ROUND($CD157*CJ$153,2) -> 24.05 | CL157: =ROUND($CD157*CL$153,2) -> 0 | CN157: =ROUND($CD157*CN$153,2) -> 37 | CT157: 3 | CU157: / | CV157: 3 | CX157: =CH157 -> 18.5 | CY157: =CJ157 -> 24.05 | CZ157: =CN157 -> 37
R160: Gesamtpunkte | T160: =SUM(T5:T158) -> 0 | U160: / | V160: =SUM(V5:V158) -> 65 | CR160: Gesamtpunkte | CT160: =SUM(CT5:CT158) -> 65 | CU160: / | CV160: =SUM(CV5:CV158) -> 65
C162: =$A$2000 -> ARZL Peter | V162: ="Gr "&TEXT($Y$1,"00") -> Gr 30
CC163: Ankreuzen
S164: =C4 -> Erweiterte Kkompetenzen (EK9) | T164: =T160 -> 0 | U164: =U160 -> / | V164: =V160 -> 65 | CC164: x
A166: 20.3
A167: =A166*20% -> 4.06 | CC167: Nummerieren
A168: =SUM(A166:A167) -> 24.36 | CC168: 1
A169: 275 | CC169: 2
A170: =A169*20% -> 55 | CC170: 3
A171: =SUM(A169:A170) -> 330 | CC171: 4
A172: 58 | CC172: 5
A173: =A172*20% -> 11.6 | CC173: 6
A174: =SUM(A172:A173) -> 69.6
A175: 38.8 | CC175: Belegkürzel
A176: =A175*20% -> 7.76 | CC176: A
A177: =SUM(A175:A176) -> 46.56 | CC177: AR
CC178: B
T179: =SUM(COUNTBLANK(H155:P157),COUNTBLANK(J146),COUNTBLANK(J140),COUNTBLANK(J134),COUNTBLANK(J128),COUNTBLANK(D118),COUNTBLANK(J118),COUNTBLANK(Q118),COUNTBLANK(P117),COUNTBLANK(I117),COUNTBLANK(G112),COUNTBLANK(G113),COUNTBLANK(H114),COUNTBLANK(N112),COUNTBLANK(N113),COUNTBLANK(P113),COUNTBLANK(P112),COUNTBLANK(N102),COUNTBLANK(N100),COUNTBLANK(N97),COUNTBLANK(N94),COUNTBLANK(Q79),COUNTBLANK(Q77),COUNTBLANK(Q75),COUNTBLANK(Q72),COUNTBLANK(N59),COUNTBLANK(N57),COUNTBLANK(N55),COUNTBLANK(N54),COUNTBLANK(N51),COUNTBLANK(H43:R44),COUNTBLANK(E35),COUNTBLANK(H30:R31),COUNTBLANK(E22),COUNTBLANK(H17:R18),COUNTBLANK(E9)) -> 125 | V179: 57 | CC179: ER
CC180: IN
CC181: K
CC182: SO
CF184: Antworten1_3 | CN184: Antworten1_3
CC185: 1 | CD185: =RAND()*CC205 -> 1.578120827 | CE185: =INDEX(CC185:CC205,RANK(CD185,CD185:CD205)) -> 21 | CF185: =$CG$112 -> Nettowert | CM185: =UPPER(MID(CN185,1,1)) -> L | CN185: =VLOOKUP(CC185,$CE$185:$CF$205,2,0) -> Leistungen
CC186: 2 | CD186: =RAND()*CC205 -> 2.477766245 | CE186: =INDEX(CC185:CC205,RANK(CD186,CD185:CD205)) -> 20 | CF186: =$CN$112 -> Preis | CM186: L | CN186: Lieferungen
CC187: 3 | CD187: =RAND()*CC205 -> 9.731159433 | CE187: =INDEX(CC185:CC205,RANK(CD187,CD185:CD205)) -> 14 | CF187: =$CP$112 -> ohne | CM187: N | CN187: Nettowertes
CC188: 4 | CD188: =RAND()*CC205 -> 19.45282755 | CE188: =INDEX(CC185:CC205,RANK(CD188,CD185:CD205)) -> 4 | CF188: =$CG$113 -> Bruttowert | CM188: B | CN188: Bruttowert
CC189: 5 | CD189: =RAND()*CC205 -> 17.3847337 | CE189: =INDEX(CC185:CC205,RANK(CD189,CD185:CD205)) -> 10 | CF189: Betrag | CM189: F | CN189: Firma
CC190: 6 | CD190: =RAND()*CC205 -> 7.080550862 | CE190: =INDEX(CC185:CC205,RANK(CD190,CD185:CD205)) -> 18 | CF190: =$CP$113 -> mit | CM190: B | CN190: Bezahlung
CC191: 7 | CD191: =RAND()*CC205 -> 19.48091217 | CE191: =INDEX(CC185:CC205,RANK(CD191,CD185:CD205)) -> 3 | CF191: =$CH$114 -> Nettowertes | CM191: Z | CN191: Zahlungsbetrag
CC192: 8 | CD192: =RAND()*CC205 -> 19.07479852 | CE192: =INDEX(CC185:CC205,RANK(CD192,CD185:CD205)) -> 5 | CF192: Firma | CM192: F | CN192: für
CC193: 9 | CD193: =RAND()*CC205 -> 17.81574017 | CE193: =INDEX(CC185:CC205,RANK(CD193,CD185:CD205)) -> 9 | CF193: Auftraggebers | CM193: A | CN193: Auftraggebers
CC194: 10 | CD194: =RAND()*CC205 -> 19.78572137 | CE194: =INDEX(CC185:CC205,RANK(CD194,CD185:CD205)) -> 2 | CF194: =$CI$117 -> Lieferungen | CM194: B | CN194: Betrag
CC195: 11 | CD195: =RAND()*CC205 -> 20.33235947 | CE195: =INDEX(CC185:CC205,RANK(CD195,CD185:CD205)) -> 1 | CF195: =$CP$117 -> Leistungen | CM195: S | CN195: Steuersatzes
CC196: 12 | CD196: =RAND()*CC205 -> 8.669651401 | CE196: =INDEX(CC185:CC205,RANK(CD196,CD185:CD205)) -> 16 | CF196: =$CD$118 -> Unternehmer | CM196: F | CN196: Finanzamt
CC197: 13 | CD197: =RAND()*CC205 -> 18.9922444 | CE197: =INDEX(CC185:CC205,RANK(CD197,CD185:CD205)) -> 6 | CF197: =$CJ$118 -> Bezahlung | CM197: U | CN197: Umsatzsteuer
CC198: 14 | CD198: =RAND()*CC205 -> 8.202858465 | CE198: =INDEX(CC185:CC205,RANK(CD198,CD185:CD205)) -> 17 | CF198: =$CQ$118 -> Unternehmens | CM198: O | CN198: ohne
CC199: 15 | CD199: =RAND()*CC205 -> 16.39220846 | CE199: =INDEX(CC185:CC205,RANK(CD199,CD185:CD205)) -> 12 | CF199: Finanzamt | CM199: B | CN199: Barwertes
CC200: 16 | CD200: =RAND()*CC205 -> 18.81134093 | CE200: =INDEX(CC185:CC205,RANK(CD200,CD185:CD205)) -> 7 | CF200: Zahlungsbetrag | CM200: U | CN200: Unternehmer
CC201: 17 | CD201: =RAND()*CC205 -> 17.98227869 | CE201: =INDEX(CC185:CC205,RANK(CD201,CD185:CD205)) -> 8 | CF201: für | CM201: U | CN201: Unternehmens
CC202: 18 | CD202: =RAND()*CC205 -> 3.073579346 | CE202: =INDEX(CC185:CC205,RANK(CD202,CD185:CD205)) -> 19 | CF202: zur | CM202: M | CN202: mit
CC203: 19 | CD203: =RAND()*CC205 -> 8.956163052 | CE203: =INDEX(CC185:CC205,RANK(CD203,CD185:CD205)) -> 15 | CF203: Barwertes | CM203: Z | CN203: zur
CC204: 20 | CD204: =RAND()*CC205 -> 16.91147251 | CE204: =INDEX(CC185:CC205,RANK(CD204,CD185:CD205)) -> 11 | CF204: Steuersatzes | CM204: P | CN204: Preis
CC205: 21 | CD205: =RAND()*CC205 -> 15.94491714 | CE205: =INDEX(CC185:CC205,RANK(CD205,CD185:CD205)) -> 13 | CF205: Umsatzsteuer | CM205: N | CN205: Nettowert
A2000: ARZL Peter
A2001: 1
A2002: BSP - Berechnung der Umsatzsteuer

Sheet BEW Belege FAs (hidden)
A1: Ergebnis
A3: Punkterechner | D3: =SUM('BEW Belege FAs'!F6:F7) -> 65 | E3: …............ | F3: 100 | G3: %
D4: =SUM(D6:D7) -> 0 | E4: …............ | F4: =D4*F3/D3 -> 0 | G4: %
A6: 0 | B6: : | D6: =IF(UST!T160="","",UST!T160) -> 0 | E6: / | F6: =UST!CV160 -> 65 | I6: Nicht erfüllte Grundkompetenzen: | M6: =IF(AND(D6="",F6=""),0,IF(D6<=F6*50%,1,0)) -> 1
B7: : | E7: /
I8: Punktemaximum: | K8: =SUM(F6:F7) -> 65
A9: =A22&" "&A23&" "&A24&" "&A25&" "&A26&" "&A27&" "&A28 -> Liebe Schülerin! / Lieber Schüler! GK0: 0/65 → nicht erfüllt! Du hast ein „NICHT GENÜGEND” erreicht. Das ist leider zu wenig! ☹️ Schau dir deine Ergebnisse bitte noch einmal an und versuch' es besser zu machen!!! LG FL Harasleben | I9: Genügend in %: | K9: =M20/K8 -> 0.4307692308
I11: Abstufung in Prozent: | K11: 0.1
I12: Abstufung in Punkten: | K12: =ROUND($K$8*K11,0) -> 7
I14: Notenschlüssel:
J15: ❶ | K15: =IF(M17=K17,K17&" P",M17&" - "&K17&" P") -> 58 - 65 P | L15: ❷ | M15: =IF(M18=K18,K18&" P",M18&" - "&K18&" P") -> 48 - 57 P | N15: ❸ | O15: =M19&" - "&K19&" P" -> 38 - 47 P | P15: ❹ | Q15: =M20&" - "&K20&" P" -> 28 - 37 P | R15: ❺ | S15: =M21&" - "&K21&" P" -> 0 - 27 P
J17: ❶ | K17: =K8 -> 65 | L17: - | M17: =K17-$K$12 -> 58 | P17: Anpassungen:
J18: ❷ | K18: =M17-1 -> 57 | L18: - | M18: =K18-($K$12+P18) -> 48 | P18: 2
J19: ❸ | K19: =M18-1 -> 47 | L19: - | M19: =K19-($K$12+P19) -> 38 | P19: 2
A20: =A47 -> <p><strong>Liebe Schülerin! / Lieber Schüler!</strong></br><p><strong><span class="" style="color: rgb(255, 102, 0);">GK0: 0/65 → nicht erfüllt!</span></strong><br><strong><span class="" style="color: rgb(153, 204, 0);"></span></strong></p><p>Du hast ein „<strong><span class="" style="color: rgb(255, 0, 0);">NICHT GENÜGEND</span></strong>” erreicht.<br>Das ist leider zu wenig! ☹️ Schau dir deine Ergebnisse bitte noch einmal an und versuch' es besser zu machen!!!</p><p><span lang="EN-US">LG</span><span lang="EN-US"><br><em><strong>FL Harasleben</strong></em></span><br></p><strong><span class="" style="color: rgb(153, 204, 0);"></span></strong> | J20: ❹ | K20: =M19-1 -> 37 | L20: - | M20: =K20-($K$12+P20) -> 28 | P20: 2
J21: ❺ | K21: =M20-1 -> 27 | L21: - | M21: 0
A22: Liebe Schülerin! / Lieber Schüler!
A23: =IF(A6="","","GK"&A6&": "&D6&E6&F6&IF(AND(D6>F6*50%,D6<=F6*75%)," → überwiegend erfüllt!",IF(D6>F6*75%," → vollständig erfüllt!"," → nicht erfüllt!"))) -> GK0: 0/65 → nicht erfüllt! | I23: Erreichte Punkte: | K23: =SUM(D6:D7) -> 0 | L23: =" das entspricht: "&TEXT(ROUND(F4,4),"# ##0,00")&" %" -> das entspricht: 0,00 %
A24: =IF(A7="","","GK"&A7&": "&D7&E7&F7&IF(AND(D7>F7*50%,D7<=F7*75%)," → überwiegend erfüllt!",IF(D7>F7*75%," → vollständig erfüllt!"," → nicht erfüllt!"))) -> 
A25: ="Du hast ein "&IF(J25=1,UPPER("„Sehr gut”"),IF(J25=2,UPPER("„Gut”"),IF(J25=3,UPPER("„Befriedigend”"),IF(J25=4,UPPER("„Genügend”"),IF(J25=5,UPPER("„Nicht genügend”"),"---")))))&" erreicht." -> Du hast ein „NICHT GENÜGEND” erreicht. | I25: Note: | J25: =IF(M6>0,5,IF(K23>=M17,1,IF(AND(K23>=M18,K23<M17),2,IF(AND(K23>=M19,K23<M18),3,IF(AND(K23>=M20,K23<M19),4,5))))) -> 5
A26: =IF(J25=1,"Das hast du ganz toll gemacht!!! 😀",IF(J25=2,"Das ist eine gute Arbeit geworden!! 🙂",IF(J25=3,"Das passt schon so! 😐",IF(J25=4,"Das geht noch besser! 🙁","Das ist leider zu wenig! ☹️ Schau dir deine Ergebnisse bitte noch einmal an und versuch' es besser zu machen!!!")))) -> Das ist leider zu wenig! ☹️ Schau dir deine Ergebnisse bitte noch einmal an und versuch' es besser zu machen!!!
A27: LG
A28: FL Harasleben
A30: <p><strong>Liebe Schülerin! / Lieber Schüler!</strong></br>
A31: <p><strong><span class="" style="color: rgb(255, 102, 0);">
A32: =IF(A6="","","GK"&A6&B6&D6&E6&F6) -> GK0: 0/65
A33: =IF(D6="","",IF(AND(D6>F6*50%,D6<=F6*75%)," → überwiegend erfüllt!",IF(D6>F6*75%," → vollständig erfüllt!"," → nicht erfüllt!"))) -> → nicht erfüllt!
A34: </span></strong><br><strong><span class="" style="color: rgb(153, 204, 0);">
A35: =IF(A7="","","EK"&A7&B7&D7&E7&F7) -> 
A36: =IF(D7="","",IF(AND(D7>F7*50%,D7<=F7*75%)," → überwiegend erfüllt!",IF(D7>F7*75%," → vollständig erfüllt!"," → nicht erfüllt!"))) -> 
A37: </span></strong></p>
A38: <p>Du hast ein „<strong><span class="" style="color: rgb(255, 0, 0);">
A39: =IF(J25=1,UPPER("Sehr gut"),IF(J25=2,UPPER("Gut"),IF(J25=3,UPPER("Befriedigend"),IF(J25=4,UPPER("Genügend"),IF(J25=5,UPPER("Nicht genügend"),"---"))))) -> NICHT GENÜGEND
A40: </span></strong>” erreicht.<br>
A41: =IF(J25=1,"Das hast du ganz toll gemacht!!! 😀",IF(J25=2,"Das ist eine gute Arbeit geworden!! 🙂",IF(J25=3,"Das passt schon so! 😐",IF(J25=4,"Das geht noch besser! 🙁","Das ist leider zu wenig! ☹️ Schau dir deine Ergebnisse bitte noch einmal an und versuch' es besser zu machen!!!")))) -> Das ist leider zu wenig! ☹️ Schau dir deine Ergebnisse bitte noch einmal an und versuch' es besser zu machen!!!
A42: </p>
A43: <p><span lang="EN-US">LG</span><span lang="EN-US"><br><em><strong>
A44: FL Harasleben</strong></em></span><br></p><strong><span class="" style="color: rgb(153, 204, 0);"></span></strong>
A47: =CONCATENATE(A30,A31,A32,A33,A34,A35,A36,A37,A38,A39,A40,A41,A42,A43,A44) -> <p><strong>Liebe Schülerin! / Lieber Schüler!</strong></br><p><strong><span class="" style="color: rgb(255, 102, 0);">GK0: 0/65 → nicht erfüllt!</span></strong><br><strong><span class="" style="color: rgb(153, 204, 0);"></span></strong></p><p>Du hast ein „<strong><span class="" style="color: rgb(255, 0, 0);">NICHT GENÜGEND</span></strong>” erreicht.<br>Das ist leider zu wenig! ☹️ Schau dir deine Ergebnisse bitte noch einmal an und versuch' es besser zu machen!!!</p><p><span lang="EN-US">LG</span><span lang="EN-US"><br><em><strong>FL Harasleben</strong></em></span><br></p><strong><span class="" style="color: rgb(153, 204, 0);"></span></strong>
